fUSD/lending_fUSD_20260430
["ID","MTS","AMOUNT","RATE_DAILY","PERIOD"]
[421365126,1777495892000,-549.806115,0.00041096,120]
[421365129,1777495892000,-366.708587,0.00041096,120]
[421365133,1777495892000,-300.0,0.00041096,120]
[421365132,1777495892000,-215.436531,0.00041096,120]
[421365137,1777495892000,-1202.0,0.00041096,120]
[421365141,1777495892000,-628.0,0.00041096,120]
[421365139,1777495892000,-628.0,0.00041096,120]
[421365140,1777495892000,-628.0,0.00041096,120]
[421365134,1777495892000,-1500.0,0.00041096,120]
[421365136,1777495892000,-1500.0,0.00041096,120]
[421365123,1777495892000,-154.662623,0.00041096,120]
[421365135,1777495892000,-1500.0,0.00041096,120]
[421365142,1777495892000,-628.0,0.00041096,120]
[421365143,1777495892000,-628.0,0.00041096,120]
[421365146,1777495892000,-628.0,0.00041096,120]
[421365089,1777495892000,-439.763631,0.00041096,120]
[421365147,1777495892000,-628.0,0.00041096,120]
[421365144,1777495892000,-628.0,0.00041096,120]
[421365148,1777495892000,-628.0,0.00041096,120]
[421365149,1777495892000,-628.0,0.00041096,120]
[421365150,1777495892000,-628.0,0.00041096,120]
[421365151,1777495892000,-628.0,0.00041096,120]
[421365153,1777495892000,-628.0,0.00041096,120]
[421365152,1777495892000,-628.0,0.00041096,120]
[421365154,1777495892000,-628.0,0.00041096,120]
[421365138,1777495892000,-628.0,0.00041096,120]
[421365131,1777495892000,-549.806117,0.00041096,120]
[421365145,1777495892000,-628.0,0.00041096,120]
[421365124,1777495892000,-366.708587,0.00041096,120]
[421365122,1777495892000,-215.436531,0.00041096,120]
[421365095,1777495892000,-549.806115,0.00041096,120]
[421365105,1777495892000,-154.662623,0.00041096,120]
[421365096,1777495892000,-439.763631,0.00041096,120]
[421365100,1777495892000,-446.983584,0.00041096,120]
[421365101,1777495892000,-366.708587,0.00041096,120]
[421365098,1777495892000,-587.511246,0.00041096,120]
[421365102,1777495892000,-549.806115,0.00041096,120]
[421365104,1777495892000,-215.436531,0.00041096,120]
[421365099,1777495892000,-154.662623,0.00041096,120]
[421365103,1777495892000,-439.763631,0.00041096,120]
[421365106,1777495892000,-446.983584,0.00041096,120]
[421365108,1777495892000,-549.806115,0.00041096,120]
[421365107,1777495892000,-366.708587,0.00041096,120]
[421365097,1777495892000,-215.436531,0.00041096,120]
[421365112,1777495892000,-366.708587,0.00041096,120]
[421365121,1777495892000,-439.763637,0.00041096,120]
[421365130,1777495892000,-446.983584,0.00041096,120]
[421365119,1777495892000,-446.983584,0.00041096,120]
[421365114,1777495892000,-549.806115,0.00041096,120]
[421365113,1777495892000,-446.983584,0.00041096,120]
[421365117,1777495892000,-154.662623,0.00041096,120]
[421365120,1777495892000,-549.806115,0.00041096,120]
[421365115,1777495892000,-439.763631,0.00041096,120]
[421365111,1777495892000,-154.662623,0.00041096,120]
[421365116,1777495892000,-215.436531,0.00041096,120]
[421365109,1777495892000,-439.763631,0.00041096,120]
[421365118,1777495892000,-366.708587,0.00041096,120]
[421365110,1777495892000,-215.436531,0.00041096,120]
[421365177,1777495893000,-353.38,0.00041174,120]
[421365185,1777495893000,-150.0,0.00041205,120]
[421365180,1777495893000,-500.0,0.000412,120]
[421365179,1777495893000,-1020.37266667,0.00041178,2]
[421365182,1777495893000,-206.4,0.000412,120]
[421365181,1777495893000,-1000.0,0.000412,31]
[421365190,1777495893000,-500.0,0.000413,120]
[421365188,1777495893000,-199.72947718,0.0004125,120]
[421365183,1777495893000,-206.4,0.000412,120]
[421365194,1777495893000,-892.82,0.00041303,120]
[421365187,1777495893000,-1000.0,0.0004125,120]
[421365186,1777495893000,-152.16569212,0.0004124,120]
[421365189,1777495893000,-1020.37266667,0.00041278,2]
[421365191,1777495893000,-900.0,0.000413,120]
[421365193,1777495893000,-500.0,0.00041301,120]
[421365192,1777495893000,-1100.0,0.000413,31]
[421365201,1777495893000,-150.5,0.0004136,120]
[421365196,1777495893000,-70000.0,0.0004133,50]
[421365176,1777495893000,-353.38,0.00041174,120]
[421365184,1777495893000,-892.82,0.00041203,120]
[421365178,1777495893000,-463.19,0.00041174,120]
[421365157,1777495893000,-628.0,0.00041096,120]
[421365175,1777495893000,-353.38,0.00041174,120]
[421365195,1777495893000,-11119.93604366,0.0004133,7]
[421365165,1777495893000,-160.18,0.000411,14]
[421365155,1777495893000,-628.0,0.00041096,120]
[421365158,1777495893000,-628.0,0.00041096,120]
[421365159,1777495893000,-628.0,0.00041096,120]
[421365156,1777495893000,-628.0,0.00041096,120]
[421365161,1777495893000,-646.18856988,0.00041096,120]
[421365166,1777495893000,-170.0,0.000411,120]
[421365160,1777495893000,-628.0,0.00041096,120]
[421365162,1777495893000,-1000.0,0.000411,120]
[421365163,1777495893000,-1000.0,0.000411,31]
[421365164,1777495893000,-1000.0,0.000411,120]
[421365167,1777495893000,-892.82,0.00041103,120]
[421365170,1777495893000,-610.60567309,0.00041111,120]
[421365169,1777495893000,-297.47234302,0.0004111,2]
[421365171,1777495893000,-3500.0,0.0004116,10]
[421365174,1777495893000,-353.38,0.00041174,120]
[421365172,1777495893000,-651.85,0.00041174,120]
[421365168,1777495893000,-214.33253288,0.00041107,120]
[421365173,1777495893000,-1413.57,0.00041174,120]
[421365197,1777495893000,-150.5,0.0004134,120]
[421365233,1777495893000,-42427.14045521,0.0004158,120]
[421365198,1777495893000,-157.30420751,0.00041343,7]
[421365219,1777495893000,-752.27107345,0.000415,120]
[421365222,1777495893000,-260364.97787039,0.000415,2]
[421365227,1777495893000,-270.62,0.00041524,30]
[421365234,1777495893000,-500.0,0.000416,120]
[421365230,1777495893000,-322.0,0.00041541,5]
[421365236,1777495893000,-1172.46,0.000416,120]
[421365226,1777495893000,-500.0,0.00041506,120]
[421365229,1777495893000,-402.05,0.00041525,30]
[421365220,1777495893000,-1000.0,0.000415,120]
[421365235,1777495893000,-190.43,0.000416,120]
[421365228,1777495893000,-500.0,0.00041525,30]
[421365241,1777495893000,-892.82,0.00041603,120]
[421365232,1777495893000,-1020.37266667,0.00041578,2]
[421365238,1777495893000,-221.69,0.000416,120]
[421365239,1777495893000,-291.64,0.000416,120]
[421365243,1777495893000,-237429.16726642,0.00041632,30]
[421365240,1777495893000,-192.45,0.000416,120]
[421365242,1777495893000,-157.30420751,0.00041617,7]
[421365231,1777495893000,-150.0,0.00041558,120]
[421365214,1777495893000,-3453.18,0.00041452,120]
[421365237,1777495893000,-1915.16,0.000416,120]
[421365223,1777495893000,-212.5900626,0.000415,50]
[421365221,1777495893000,-6266.54,0.000415,120]
[421365199,1777495893000,-150.5,0.0004135,120]
[421365202,1777495893000,-150.5,0.0004136,120]
[421365203,1777495893000,-1020.37266667,0.00041378,2]
[421365205,1777495893000,-600.0,0.000414,120]
[421365206,1777495893000,-892.82,0.00041403,120]
[421365204,1777495893000,-566.09,0.000414,120]
[421365207,1777495893000,-161.99149718,0.00041408,120]
[421365210,1777495893000,-282.65,0.00041425,120]
[421365212,1777495893000,-184.51,0.00041452,120]
[421365200,1777495893000,-274.94,0.0004135,120]
[421365208,1777495893000,-212.82518416,0.0004142,120]
[421365209,1777495893000,-342.78,0.00041424,30]
[421365213,1777495893000,-511.72,0.00041452,120]
[421365211,1777495893000,-280.89,0.00041452,120]
[421365216,1777495893000,-1739.8833542,0.00041456,115]
[421365217,1777495893000,-1020.37266667,0.00041478,2]
[421365215,1777495893000,-150.0,0.00041452,120]
[421365225,1777495893000,-892.82,0.00041503,120]
[421365224,1777495893000,-152.0,0.000415,120]
[421365218,1777495893000,-5000.0,0.000415,100]
[421365244,1777495894000,-908.93468603,0.00041632,30]
[421365245,1777495894000,-129.24804755,0.00041632,30]
[421365247,1777495894000,-250.0,0.00041644,120]
[421365246,1777495894000,-1288.0,0.00041637,120]
[421365249,1777495894000,-269.31,0.00041644,120]
[421365251,1777495894000,-553.83,0.00041644,120]
[421365250,1777495894000,-584.94,0.00041644,120]
[421365253,1777495894000,-547.25,0.00041644,120]
[421365252,1777495894000,-230.48,0.00041644,30]
[421365254,1777495894000,-341.98489668,0.00041678,2]
[421365248,1777495894000,-411.85,0.00041644,120]
[421365278,1777495895000,-215.436531,0.00041096,120]
[421365270,1777495895000,-366.708587,0.00041096,120]
[421365267,1777495895000,-366.708587,0.00041096,120]
[421365266,1777495895000,-215.436531,0.00041096,120]
[421365269,1777495895000,-215.436531,0.00041096,120]
[421365268,1777495895000,-446.983584,0.00041096,120]
[421365265,1777495895000,-446.983584,0.00041096,120]
[421365271,1777495895000,-446.983584,0.00041096,120]
[421365273,1777495895000,-366.708587,0.00041096,120]
[421365272,1777495895000,-215.436531,0.00041096,120]
[421365261,1777495895000,-150.0,0.00038499,120]
[421365264,1777495895000,-366.708587,0.00041096,120]
[421365262,1777495895000,-150.0,0.00038499,120]
[421365259,1777495895000,-537.0,0.0003794,30]
[421365257,1777495895000,-1239.4386276,0.0003794,30]
[421365260,1777495895000,-500.0,0.00038062,23]
[421365258,1777495895000,-865.5613724,0.0003794,30]
[421365255,1777495895000,-419.85965851,0.0003794,2]
[421365276,1777495895000,-446.983584,0.00041096,120]
[421365263,1777495895000,-150.0,0.00038499,120]
[421365256,1777495895000,-300.0,0.0003794,2]
[421365274,1777495895000,-446.983584,0.00041096,120]
[421365275,1777495895000,-215.436531,0.00041096,120]
[421365277,1777495895000,-366.708587,0.00041096,120]
[421365296,1777495895000,-200000.0,0.000417,120]
[421365298,1777495895000,-464.708395,0.000417,120]
[421365297,1777495895000,-194141.42391311,0.000417,120]
[421365295,1777495895000,-142961.93636484,0.000417,120]
[421365289,1777495895000,-50.744162,0.000417,120]
[421365294,1777495895000,-215.436531,0.00041096,120]
[421365290,1777495895000,-68525.97040653,0.000417,120]
[421365291,1777495895000,-7300.94050458,0.000417,120]
[421365292,1777495895000,-300.0,0.0003794,2]
[421365293,1777495895000,-500.0,0.00038062,23]
[421365288,1777495895000,-215.436531,0.00041096,120]
[421365287,1777495895000,-81160.40856205,0.000417,120]
[421365283,1777495895000,-678.38776999,0.00041678,2]
[421365282,1777495895000,-366.708592,0.00041096,120]
[421365285,1777495895000,-1139.7,0.00041694,120]
[421365280,1777495895000,-446.983588,0.00041096,120]
[421365284,1777495895000,-250.0,0.00041686,120]
[421365281,1777495895000,-215.436531,0.00041096,120]
[421365279,1777495895000,-366.708587,0.00041096,120]
[421365286,1777495895000,-14857.67,0.00041699,120]
[421365304,1777497031000,-481.95418243,0.00022373,2]
[421365303,1777497031000,-300.0,0.00022372,2]
[421365306,1777497031000,-500.0,0.00022373,2]
[421365305,1777497031000,-4518.04581757,0.00022373,2]
[421365309,1777497031000,-162.31979731,0.0002648,2]
[421365308,1777497031000,-150.0,0.0002505,2]
[421365311,1777497031000,-1500.0,0.00027397,2]
[421365310,1777497031000,-506.0,0.00027137,2]
[421365307,1777497031000,-500.0,0.00022373,2]
[421365331,1777497032000,-227.7564714,0.00031578,60]
[421365333,1777497032000,-150.0,0.00032562,2]
[421365338,1777497032000,-2500.0,0.00033874,120]
[421365335,1777497032000,-171.0,0.00033087,30]
[421365350,1777497032000,-166.66,0.00034907,30]
[421365340,1777497032000,-166.66,0.00034202,30]
[421365339,1777497032000,-150.0,0.0003419,2]
[421365341,1777497032000,-1000.0,0.00034436,2]
[421365343,1777497032000,-158.442,0.0003457,39]
[421365349,1777497032000,-1500.0,0.00034795,2]
[421365348,1777497032000,-434.34,0.00034776,2]
[421365345,1777497032000,-150.0,0.00034574,2]
[421365342,1777497032000,-320.0,0.00034509,120]
[421365344,1777497032000,-836.707,0.0003457,39]
[421365346,1777497032000,-200.0,0.00034574,2]
[421365351,1777497032000,-166.66,0.00035326,2]
[421365353,1777497032000,-166.66,0.00035612,30]
[421365354,1777497032000,-184.82056372,0.00035616,2]
[421365352,1777497032000,-506.0,0.00035484,11]
[421365355,1777497032000,-500.0,0.00035835,3]
[421365347,1777497032000,-2000.0,0.00034728,2]
[421365330,1777497032000,-772.654438,0.00031578,60]
[421365324,1777497032000,-173.19,0.00030411,120]
[421365334,1777497032000,-506.0,0.00032702,8]
[421365356,1777497032000,-280.0,0.00035835,3]
[421365313,1777497032000,-1000.0,0.00028095,7]
[421365312,1777497032000,-1000.0,0.00027398,2]
[421365314,1777497032000,-1000.0,0.00028793,30]
[421365316,1777497032000,-1000.0,0.00029229,2]
[421365322,1777497032000,-200.0,0.00030137,40]
[421365327,1777497032000,-150.0,0.00031011,2]
[421365326,1777497032000,-1000.0,0.00030886,30]
[421365315,1777497032000,-833.42,0.00028793,2]
[421365336,1777497032000,-166.66,0.00033496,30]
[421365325,1777497032000,-1000.0,0.00030636,30]
[421365317,1777497032000,-1000.0,0.00029491,2]
[421365321,1777497032000,-1000.0,0.00029932,7]
[421365319,1777497032000,-506.0,0.00029919,5]
[421365318,1777497032000,-150.0,0.00029534,2]
[421365320,1777497032000,-1000.0,0.00029928,7]
[421365329,1777497032000,-500.0,0.00031578,60]
[421365328,1777497032000,-163.0,0.00031087,30]
[421365337,1777497032000,-280.04487172,0.00033782,2]
[421365332,1777497032000,-163.0,0.00032087,30]
[421365323,1777497032000,-1000.0,0.00030188,7]
[421365357,1777497032000,-500.0,0.00035835,3]
[421365369,1777497032000,-166.66,0.00037658,2]
[421365359,1777497032000,-150.0,0.00035899,2]
[421365385,1777497032000,-300.0,0.00037924,2]
[421365384,1777497032000,-300.0,0.00037924,2]
[421365395,1777497032000,-300.0,0.00037924,2]
[421365386,1777497032000,-300.0,0.00037924,2]
[421365396,1777497032000,-300.0,0.00037924,2]
[421365397,1777497032000,-510.0217671,0.00037924,2]
[421365387,1777497032000,-300.0,0.00037924,2]
[421365392,1777497032000,-491.01442266,0.00037924,2]
[421365391,1777497032000,-300.0,0.00037924,2]
[421365381,1777497032000,-300.0,0.00037924,2]
[421365390,1777497032000,-300.0,0.00037924,2]
[421365388,1777497032000,-300.0,0.00037924,2]
[421365393,1777497032000,-300.0,0.00037924,2]
[421365394,1777497032000,-300.0,0.00037924,2]
[421365399,1777497032000,-300.0,0.00037924,2]
[421365398,1777497032000,-92.40786426,0.00037924,2]
[421365400,1777497032000,-300.0,0.00037924,2]
[421365401,1777497032000,-300.0,0.00037924,2]
[421365402,1777497032000,-193.52223283,0.00037924,2]
[421365404,1777497032000,-171.93064339,0.00037924,2]
[421365389,1777497032000,-300.0,0.00037924,2]
[421365376,1777497032000,-300.69379518,0.00037924,2]
[421365358,1777497032000,-280.0,0.00035835,3]
[421365382,1777497032000,-300.0,0.00037924,2]
[421365361,1777497032000,-152.0,0.00036022,3]
[421365371,1777497032000,-740.98180423,0.00037753,120]
[421365362,1777497032000,-200.0,0.00036085,2]
[421365360,1777497032000,-1000.0,0.00035911,120]
[421365367,1777497032000,-6704.8796,0.00037042,2]
[421365363,1777497032000,-166.66,0.00036317,30]
[421365364,1777497032000,-166.66,0.00036492,2]
[421365366,1777497032000,-395.25347582,0.00037032,2]
[421365365,1777497032000,-166.66,0.00037022,30]
[421365368,1777497032000,-190.53878735,0.000372,120]
[421365378,1777497032000,-300.0,0.00037924,2]
[421365403,1777497032000,-332.43662425,0.00037924,2]
[421365373,1777497032000,-8641.95,0.00037914,10]
[421365383,1777497032000,-300.0,0.00037924,2]
[421365372,1777497032000,-36627.3708,0.00037824,2]
[421365375,1777497032000,-300.0,0.00037924,2]
[421365377,1777497032000,-1090.98668708,0.00037924,2]
[421365380,1777497032000,-300.0,0.00037924,2]
[421365374,1777497032000,-7201.63,0.00037914,10]
[421365379,1777497032000,-300.0,0.00037924,2]
[421365370,1777497032000,-150.0,0.00037694,2]
[421365411,1777497037000,-1000.0,0.00027398,2]
[421365412,1777497037000,-739.01777173,0.00028179,7]
[421365414,1777497037000,-95.24552486,0.0002896,30]
[421365413,1777497037000,-260.98222827,0.00028179,7]
[421365437,1777497038000,-300.0,0.00037924,2]
[421365442,1777497038000,-300.0,0.00037924,2]
[421365444,1777497038000,-300.0,0.00037924,2]
[421365438,1777497038000,-300.0,0.00037924,2]
[421365439,1777497038000,-331.83437187,0.00037924,2]
[421365447,1777497038000,-1143.28605913,0.00037924,2]
[421365450,1777497038000,-300.0,0.00037924,2]
[421365454,1777497038000,-300.0,0.00037924,2]
[421365461,1777497038000,-300.0,0.00037924,2]
[421365459,1777497038000,-300.0,0.00037924,2]
[421365463,1777497038000,-462.29239414,0.00037924,2]
[421365449,1777497038000,-861.48587114,0.00037924,2]
[421365446,1777497038000,-300.0,0.00037924,2]
[421365448,1777497038000,-308.5418779,0.00037924,2]
[421365456,1777497038000,-309.84039163,0.00037924,2]
[421365443,1777497038000,-1790.27047416,0.00037924,2]
[421365467,1777497038000,-433.17313298,0.00037924,2]
[421365470,1777497038000,-300.0,0.00037924,2]
[421365465,1777497038000,-300.0,0.00037924,2]
[421365472,1777497038000,-450.3651763,0.00037924,2]
[421365474,1777497038000,-300.0,0.00037924,2]
[421365452,1777497038000,-300.0,0.00037924,2]
[421365445,1777497038000,-342.75795842,0.00037924,2]
[421365433,1777497038000,-300.0,0.00037924,2]
[421365441,1777497038000,-839.32738085,0.00037924,2]
[421365417,1777497038000,-1000.0,0.00029742,2]
[421365415,1777497038000,-904.75447514,0.0002896,30]
[421365418,1777497038000,-1000.0,0.00030184,7]
[421365416,1777497038000,-1000.0,0.00029244,2]
[421365421,1777497038000,-1000.0,0.00031305,30]
[421365422,1777497038000,-1000.0,0.00032086,2]
[421365420,1777497038000,-1000.0,0.00031124,30]
[421365419,1777497038000,-1000.0,0.00030523,7]
[421365424,1777497038000,-1937.0,0.00037924,30]
[421365423,1777497038000,-492.0,0.00037924,30]
[421365425,1777497038000,-462.0,0.00037924,30]
[421365482,1777497038000,-482.43942189,0.00037924,2]
[421365432,1777497038000,-300.0,0.00037924,2]
[421365428,1777497038000,-890.38635649,0.00037924,2]
[421365426,1777497038000,-353.2910557,0.00037924,2]
[421365430,1777497038000,-723.61897705,0.00037924,2]
[421365431,1777497038000,-300.0,0.00037924,2]
[421365434,1777497038000,-300.0,0.00037924,2]
[421365427,1777497038000,-1063.30858973,0.00037924,2]
[421365435,1777497038000,-300.0,0.00037924,2]
[421365440,1777497038000,-300.0,0.00037924,2]
[421365436,1777497038000,-300.0,0.00037924,2]
[421365429,1777497038000,-302.03006712,0.00037924,2]
[421365478,1777497038000,-300.0,0.00037924,2]
[421365480,1777497038000,-300.0,0.00037924,2]
[421365556,1777497038000,-1063.30858973,0.00037924,2]
[421365558,1777497038000,-890.38635649,0.00037924,2]
[421365554,1777497038000,-525.95885708,0.00037924,2]
[421365539,1777497038000,-300.0,0.00037924,2]
[421365547,1777497038000,-300.0,0.00037924,2]
[421365541,1777497038000,-300.0,0.00037924,2]
[421365545,1777497038000,-602.42963136,0.00037924,2]
[421365560,1777497038000,-302.03006712,0.00037924,2]
[421365549,1777497038000,-300.0,0.00037924,2]
[421365565,1777497038000,-300.0,0.00037924,2]
[421365551,1777497038000,-300.0,0.00037924,2]
[421365567,1777497038000,-300.0,0.00037924,2]
[421365569,1777497038000,-300.0,0.00037924,2]
[421365563,1777497038000,-723.61897705,0.00037924,2]
[421365582,1777497038000,-331.83437187,0.00037924,2]
[421365578,1777497038000,-300.0,0.00037924,2]
[421365580,1777497038000,-300.0,0.00037924,2]
[421365573,1777497038000,-300.0,0.00037924,2]
[421365576,1777497038000,-300.0,0.00037924,2]
[421365587,1777497038000,-839.32738085,0.00037924,2]
[421365585,1777497038000,-300.0,0.00037924,2]
[421365589,1777497038000,-300.0,0.00037924,2]
[421365484,1777497038000,-308.79275606,0.00037924,2]
[421365533,1777497038000,-491.01442266,0.00037924,2]
[421365571,1777497038000,-300.0,0.00037924,2]
[421365531,1777497038000,-300.0,0.00037924,2]
[421365537,1777497038000,-300.00356734,0.00037924,2]
[421365476,1777497038000,-300.0,0.00037924,2]
[421365487,1777497038000,-300.0,0.00037924,2]
[421365489,1777497038000,-300.0,0.00037924,2]
[421365491,1777497038000,-300.0,0.00037924,2]
[421365493,1777497038000,-419.85965851,0.00037924,2]
[421365495,1777497038000,-300.0,0.00037924,2]
[421365498,1777497038000,-300.0,0.00037924,2]
[421365507,1777497038000,-300.0,0.00037924,2]
[421365503,1777497038000,-1090.98668708,0.00037924,2]
[421365505,1777497038000,-300.0,0.00037924,2]
[421365500,1777497038000,-300.0,0.00037924,2]
[421365511,1777497038000,-300.0,0.00037924,2]
[421365514,1777497038000,-300.0,0.00037924,2]
[421365516,1777497038000,-300.0,0.00037924,2]
[421365518,1777497038000,-591.4604557,0.00037924,2]
[421365523,1777497038000,-300.0,0.00037924,2]
[421365521,1777497038000,-300.0,0.00037924,2]
[421365527,1777497038000,-300.0,0.00037924,2]
[421365525,1777497038000,-300.0,0.00037924,2]
[421365535,1777497038000,-300.0,0.00037924,2]
[421365529,1777497038000,-300.0,0.00037924,2]
[421365509,1777497038000,-300.0,0.00037924,2]
[421365640,1777497039000,-500.0,0.00038062,23]
[421365605,1777497039000,-300.0,0.00037924,2]
[421365619,1777497039000,-300.0,0.00037924,2]
[421365621,1777497039000,-450.3651763,0.00037924,2]
[421365624,1777497039000,-300.0,0.00037924,2]
[421365625,1777497039000,-300.0,0.00037924,2]
[421365636,1777497039000,-482.43942189,0.00037924,2]
[421365634,1777497039000,-300.0,0.00037924,2]
[421365630,1777497039000,-300.0,0.00037924,2]
[421365601,1777497039000,-300.0,0.00037924,2]
[421365628,1777497039000,-300.0,0.00037924,2]
[421365632,1777497039000,-300.0,0.00037924,2]
[421365617,1777497039000,-433.17313298,0.00037924,2]
[421365613,1777497039000,-462.29239414,0.00037924,2]
[421365603,1777497039000,-300.0,0.00037924,2]
[421365599,1777497039000,-861.48587114,0.00037924,2]
[421365615,1777497039000,-300.0,0.00037924,2]
[421365611,1777497039000,-300.0,0.00037924,2]
[421365609,1777497039000,-300.0,0.00037924,2]
[421365597,1777497039000,-300.0,0.00037924,2]
[421365594,1777497039000,-362.80626123,0.00037924,2]
[421365591,1777497039000,-300.0,0.00037924,2]
[421365595,1777497039000,-308.5418779,0.00037924,2]
[421365593,1777497039000,-1143.28605913,0.00037924,2]
[421365592,1777497039000,-342.75795842,0.00037924,2]
[421365607,1777497039000,-309.84039163,0.00037924,2]
[421365590,1777497039000,-1790.27047416,0.00037924,2]
[421365638,1777497039000,-290.1547,0.0003806,2]
[421365654,1777497039000,-5800.0,0.00038117,2]
[421365698,1777497039000,-39740.43378731,0.000409,25]
[421365701,1777497039000,-2551.37717264,0.000409,25]
[421365694,1777497039000,-543.0,0.0004085,30]
[421365696,1777497039000,-896.41665162,0.00040896,28]
[421365692,1777497039000,-2378.724,0.0004085,2]
[421365690,1777497039000,-297.294,0.00040811,30]
[421365689,1777497039000,-2947.1493852,0.0004079,120]
[421365679,1777497039000,-150.0,0.00040095,120]
[421365677,1777497039000,-409.90071623,0.0004,120]
[421365683,1777497039000,-2246.56764638,0.00040428,2]
[421365681,1777497039000,-150.0,0.00040095,120]
[421365685,1777497039000,-1199.73,0.00040734,2]
[421365675,1777497039000,-166.66,0.0003999,2]
[421365642,1777497039000,-500.0,0.00038062,23]
[421365673,1777497039000,-290.155,0.00039963,2]
[421365671,1777497039000,-1280.0,0.00039676,120]
[421365667,1777497039000,-2000.0,0.00039069,2]
[421365665,1777497039000,-290.1547,0.00039012,2]
[421365646,1777497039000,-5800.0,0.00038083,2]
[421365663,1777497039000,-166.66,0.00038824,2]
[421365650,1777497039000,-5800.0,0.000381,2]
[421365653,1777497039000,-5800.0,0.00038108,2]
[421365648,1777497039000,-5800.0,0.00038091,2]
[421365657,1777497039000,-5800.0,0.00038125,2]
[421365659,1777497039000,-506.0,0.00038266,14]
[421365661,1777497039000,-320.0,0.00038822,120]
[421365644,1777497039000,-500.0,0.00038062,23]
[421365669,1777497039000,-150.0,0.00039579,2]
[421365922,1777497936000,150.0,0.00014988,30]
[421365921,1777497936000,150.0,0.00013538,30]
[421365923,1777498008000,150.0,0.00013469,30]
[421365924,1777498009000,150.0,0.00014912,30]
[421365925,1777498025000,75905.56799664,0.00012,2]
[421365959,1777498232000,-500.0,0.00011999,2]
[421365949,1777498232000,-129.73449873,0.00011999,2]
[421365955,1777498232000,-393.26550127,0.00011999,2]
[421365953,1777498232000,-500.0,0.00011999,2]
[421365951,1777498232000,-129.73449873,0.00011999,2]
[421365952,1777498232000,-370.26550127,0.00011999,2]
[421365948,1777498232000,-500.0,0.00011999,2]
[421365950,1777498232000,-370.26550127,0.00011999,2]
[421365947,1777498232000,-500.0,0.00011999,2]
[421365943,1777498232000,-500.0,0.00011999,2]
[421365946,1777498232000,-500.0,0.00011999,2]
[421365937,1777498232000,-300.0,0.00011998,2]
[421365939,1777498232000,-150.0,0.00011998,2]
[421365942,1777498232000,-201.5001,0.00011999,2]
[421365944,1777498232000,-344.92962454,0.00011999,2]
[421365941,1777498232000,-298.4999,0.00011999,2]
[421365940,1777498232000,-300.0,0.00011998,2]
[421365954,1777498232000,-106.73449873,0.00011999,2]
[421365938,1777498232000,-1200.0,0.00011998,2]
[421365945,1777498232000,-155.07037546,0.00011999,2]
[421365956,1777498232000,-500.0,0.00011999,2]
[421365963,1777498232000,-500.0,0.00011999,2]
[421365958,1777498232000,-167.8862969,0.00011999,2]
[421365989,1777498232000,-1800.0,0.00012,2]
[421365993,1777498232000,-19195.0,0.00012,2]
[421365984,1777498232000,-25182.18858594,0.00012,2]
[421365987,1777498232000,-2219.85911231,0.00012,2]
[421365982,1777498232000,-1200.0,0.00012,2]
[421365960,1777498232000,-500.0,0.00011999,2]
[421365977,1777498232000,-43270.04614868,0.00012,2]
[421365975,1777498232000,-500.0,0.00011999,2]